bitfinex/quotes_ETHUSD_20260313
["timestamp","ask_amount","ask_price","bid_price","bid_amount"]
[1773406965873,6.53494147,2147.4,2146.2,6.56622134]
[1773406966074,5.42895554,2147.3,2146.2,6.56622134]
[1773406967160,1.16419856,2147.4,2146.4,5.42671317]
[1773406968166,5.37074291,2147.4,2146.5,1.16468669]
[1773406968362,0.002,2147.6,2146.7,5.42671317]
[1773406968567,0.0602045,2147.6,2146.7,5.42671317]
[1773406969671,5.43094741,2147.6,2146.5,1.16468669]
[1773406969875,5.43094741,2147.6,2146.5,6.59139986]
[1773406970874,1.16414435,2147.5,2146.7,5.40930585]
[1773406971670,1.224311,2147.6,2146.7,5.40930585]
[1773406972263,0.002,2147.6,2146.7,5.40930585]
[1773406972880,0.002,2147.6,2147.0,5.40930585]
[1773406974070,0.002,2147.8,2147.3,5.40930585]
[1773406974471,0.05988895,2147.8,2147.0,5.40930585]
[1773406974980,1.22391982,2147.8,2147.1,6.57366708]
[1773406975279,1.16603087,2147.8,2147.1,6.57366708]
[1773406975463,1.16599975,2147.8,2147.1,6.57366708]
[1773406976278,0.002,2147.4,2146.9,1.16443248]
[1773406976447,5.09917176,2147.6,2146.9,1.16443248]
[1773406976851,1.22234072,2147.5,2146.8,6.57378803]
[1773406977571,6.31951248,2147.5,2146.8,1.16448218]
[1773406979664,6.31951248,2147.5,2146.5,1.16468669]
[1773406979982,6.31951248,2147.5,2146.5,6.57399254]
[1773406981670,6.26131611,2147.5,2146.7,6.57388403]
[1773406982055,0.05820992,2147.4,2146.7,6.57388403]
[1773406982381,0.002,2147.6,2146.7,6.57388403]
[1773406982585,0.0602045,2147.6,2146.7,6.57388403]
[1773406982757,0.002,2147.6,2147.0,5.40930585]
[1773406983084,0.002,2147.8,2147.0,5.40930585]
[1773406983284,0.002,2147.8,2147.3,5.40930585]
[1773406984489,0.002,2147.8,2147.4,1.16419856]
[1773406984859,5.09917176,2147.8,2147.2,1.16428417]
[1773406985061,0.002,2147.8,2147.2,6.57359002]
[1773406985260,5.09917176,2147.8,2147.0,1.16437374]
[1773406985482,5.155058,2147.7,2146.7,4.65816228]
[1773406985685,5.155058,2147.7,2146.7,1.16457818]
[1773406986064,5.155058,2147.7,2146.7,6.57388403]
[1773406986467,5.09717176,2147.5,2146.5,1.16465017]
[1773406986667,5.15536542,2147.5,2146.4,1.16470503]
[1773406986869,5.15536542,2147.5,2146.2,1.1648495]
[1773406987470,5.15536542,2147.5,2146.1,1.16486515]
[1773406988287,5.15536542,2147.5,2145.9,10.06922398]
[1773406988606,5.09717176,2147.3,2145.9,10.06922398]
[1773406988894,5.09717176,2147.3,2146.3,0.001]
[1773406989691,5.09717176,2147.3,2146.0,0.001]
[1773406990159,5.09717176,2147.1,2146.0,0.001]
[1773406990662,5.09717176,2146.9,2146.0,0.001]
[1773406992302,5.09717176,2146.7,2146.0,0.001]
[1773406992477,5.09717176,2146.5,2146.0,0.001]
[1773406993882,5.09717176,2146.3,2145.8,0.001]
[1773406994191,5.09717176,2146.3,2144.9,1.16655512]
[1773406994584,5.09717176,2146.1,2144.9,0.001]
[1773406997208,5.09717176,2145.9,2144.9,0.001]
[1773406997897,5.09717176,2145.9,2145.0,5.41030585]
[1773406999301,1.16506664,2145.8,2145.1,1.16544683]
[1773406999505,1.16506664,2145.8,2145.0,10.07209317]
[1773406999506,5.09717176,2145.7,2145.0,1.16648862]
[1773407001597,1.16517524,2145.6,2145.2,0.001]
[1773407001799,6.41402166,2146.3,2145.2,0.001]
[1773407001996,6.41402166,2146.3,2145.2,5.03750169]
[1773407002209,5.24922644,2146.3,2145.5,5.03650169]
[1773407002910,1.22298527,2146.4,2145.5,5.03650169]
[1773407003114,0.05823704,2146.4,2145.5,5.03650169]
[1773407003323,1.22298612,2146.4,2145.5,5.03650169]
[1773407003483,0.05823704,2146.4,2145.5,5.03650169]
[1773407003692,0.05784286,2146.5,2145.7,5.03650169]
[1773407004306,0.05784286,2146.5,2145.6,1.16517524]
[1773407004307,5.24922644,2146.4,2145.6,1.16517524]
[1773407004613,5.30707201,2146.3,2145.4,1.16524701]
[1773407004789,5.30707201,2146.3,2145.3,4.66131068]
[1773407004989,5.30707201,2146.3,2145.2,5.03750169]
[1773407005190,5.30707201,2146.3,2145.2,1.16638697]
[1773407005904,5.24922644,2146.1,2145.2,0.001]
[1773407006213,5.24922644,2145.9,2145.2,0.001]
[1773407006390,0.05784557,2145.8,2145.2,0.001]
[1773407007902,1.16512093,2145.7,2145.2,0.001]
[1773407008103,1.1650262,2145.9,2145.2,5.03750169]
[1773407008421,0.05825333,2145.8,2145.2,5.03750169]
[1773407008991,6.41422818,2146.0,2145.2,5.03750169]
[1773407009219,5.24922644,2146.0,2145.2,5.03750169]
[1773407009420,1.16492096,2146.1,2145.2,5.03750169]
[1773407009818,5.24922644,2146.3,2145.5,1.16522955]
[1773407009998,0.05824247,2146.2,2145.6,5.03650169]
[1773407010200,0.05783743,2146.3,2145.6,5.03650169]
[1773407010525,4.65690138,2147.4,2145.5,1.16522955]
[1773407010526,6.41376641,2146.8,2145.7,5.03650169]
[1773407010692,5.24922644,2146.5,2145.5,1.16522955]
[1773407010903,5.30746348,2146.4,2145.5,1.16522955]
[1773407011322,5.30746348,2146.4,2145.5,6.20173124]
[1773407011528,5.24922644,2146.7,2145.5,6.20173124]
[1773407011724,5.30745534,2146.7,2145.6,5.03650169]
[1773407012120,1.16463244,2146.6,2145.7,1.16512093]
[1773407012314,5.30707744,2146.5,2145.7,1.16512093]
[1773407012818,5.30707744,2146.5,2145.4,1.16528386]
[1773407013218,5.30707744,2146.5,2145.4,6.20178555]
[1773407013427,5.24922644,2146.5,2145.5,5.03650169]
[1773407013594,0.002,2146.3,2145.5,5.03650169]
[1773407014221,6.41407594,2146.2,2145.3,4.66118845]
[1773407014415,0.05784286,2146.1,2145.3,9.69769014]
[1773407014725,5.3070693,2146.1,2145.3,9.69769014]
[1773407016406,5.24922644,2146.1,2145.4,5.03650169]
[1773407016604,0.05824247,2146.2,2145.4,5.03650169]
[1773407017303,5.30746891,2146.2,2145.4,5.03650169]
[1773407018222,5.30746891,2146.2,2145.3,9.69769014]
[1773407018427,1.16490377,2146.1,2145.4,5.03650169]
[1773407018626,0.002,2146.3,2145.4,5.03650169]
[1773407018798,0.002,2146.3,2145.5,5.03650169]
[1773407018999,0.06023976,2146.3,2145.5,5.03650169]
[1773407019200,0.002,2146.3,2145.5,5.03650169]
[1773407020628,0.002,2146.3,2145.6,1.16517524]
[1773407022327,0.002,2146.3,2145.6,6.20167693]
[1773407022529,0.002,2146.5,2145.8,5.03650169]
[1773407022703,0.0582289,2146.7,2146.0,5.03650169]
[1773407024854,0.0582289,2146.7,2146.1,1.16490377]
[1773407025312,6.47203991,2146.7,2145.7,9.69676825]
[1773407025641,6.47203991,2146.7,2145.8,1.16506664]
[1773407026146,6.47203991,2146.7,2145.8,6.48137062]
[1773407026344,6.47203991,2146.7,2145.8,1.16506664]
[1773407026712,5.19203069,2146.5,2145.8,1.16506664]
[1773407026924,1.22259671,2146.4,2145.6,4.6606965]
[1773407027109,1.22259671,2146.4,2145.6,9.97700048]
[1773407027535,0.057851,2146.4,2145.6,9.97700048]
[1773407028535,0.057851,2146.4,2145.7,5.31630398]
[1773407028739,6.35671995,2146.5,2145.7,5.31630398]
[1773407028913,5.19203069,2146.5,2145.8,1.16506664]
[1773407029112,5.19203069,2146.5,2145.8,6.48137062]
[1773407029421,6.41495318,2146.5,2145.8,6.48137062]
[1773407032229,6.41495318,2146.5,2145.5,5.0313128]
[1773407032437,6.35671925,2146.5,2145.5,5.0313128]
[1773407032766,0.05823433,2146.4,2145.5,5.0313128]
[1773407032913,5.2300714,2146.4,2145.4,0.23827305]
[1773407033111,5.2300714,2146.4,2145.2,7.950978]
[1773407033112,5.17183707,2146.3,2145.2,0.001]
[1773407033514,5.23007683,2146.3,2145.1,1.16542523]
[1773407033709,5.23007683,2146.3,2144.9,0.001]
[1773407034021,5.17183707,2145.5,2144.7,0.001]
[1773407034384,5.17183707,2145.5,2143.4,4.66535915]
[1773407034385,5.17183707,2144.9,2143.4,4.66535915]
[1773407034520,5.17183707,2144.8,2143.5,1.16730205]
[1773407034858,5.17183707,2144.8,2141.7,3.2988499]
[1773407034859,5.17183707,2143.6,2141.7,3.2988499]
[1773407035053,5.17183707,2143.5,2142.0,1.55780978]
[1773407035237,5.17183707,2143.3,2141.7,4.66913756]
[1773407035549,5.17183707,2143.3,2142.0,1.55780978]
[1773407035749,5.17183707,2143.3,2142.0,6.58912258]
[1773407036052,5.17183707,2142.9,2141.5,5.0313128]
[1773407036347,5.17183707,2142.9,2141.6,1.55780978]
[1773407036514,5.17183707,2142.9,2141.3,6.19877333]
[1773407036515,5.17183707,2142.9,2141.3,1.16747864]
[1773407036715,5.17183707,2142.9,2141.3,6.19879144]
[1773407036932,1.55780978,2142.3,2140.5,5.0313128]
[1773407037150,5.17183707,2142.2,2140.5,5.0313128]
[1773407037348,5.17183707,2142.2,2140.9,6.58912258]
[1773407037646,5.17183707,2142.2,2141.0,5.0313128]
[1773407038051,5.17183707,2142.2,2141.1,1.16762411]
[1773407038252,1.55780978,2143.0,2141.5,6.58912258]
[1773407038253,6.3384804,2142.9,2141.5,6.58912258]
[1773407038416,6.3384804,2142.9,2141.5,6.59012258]
[1773407038620,6.3384804,2142.9,2141.5,6.58912258]
[1773407038823,6.338274,2143.3,2141.9,5.0313128]
[1773407039126,6.338274,2143.3,2142.1,0.001]
[1773407039330,6.338274,2143.3,2141.7,5.0]
[1773407039630,6.338274,2143.3,2141.7,4.272927]
[1773407039834,6.338274,2143.3,2141.6,4.272927]
[1773407040150,6.338274,2143.3,2141.6,1.16735151]
[1773407040350,6.338274,2143.3,2141.9,5.0313128]
[1773407040821,0.34259146,2143.4,2142.4,6.58912258]
[1773407041023,5.17183707,2144.1,2142.7,1.55780978]
[1773407041223,5.17183707,2144.1,2142.8,2.47333]
[1773407041424,7.69751659,2144.4,2143.0,1.55780978]
[1773407041647,7.75580795,2144.4,2143.0,1.55780978]
[1773407041860,0.05829136,2144.4,2142.9,5.0313128]
[1773407042039,0.05829136,2144.4,2143.0,0.065536]
[1773407042040,5.23012843,2144.4,2143.0,0.065536]
[1773407042357,5.17183707,2144.2,2143.0,1.16758889]
[1773407042562,9.83409683,2144.9,2143.3,8.5638378]
[1773407042721,9.83409683,2144.9,2143.3,1.55780978]
[1773407042722,5.17183707,2144.6,2143.3,1.55780978]
[1773407042921,5.23012571,2144.5,2143.0,1.16658889]
[1773407043822,5.23012843,2144.4,2143.1,0.001]
[1773407044159,1.16588163,2144.3,2143.1,5.0313128]
[1773407044353,0.0582968,2144.2,2143.0,1.16658889]
[1773407044653,5.23013387,2144.2,2143.0,1.16658889]
[1773407045228,5.17183707,2144.2,2143.0,1.16658889]
[1773407045560,5.17183707,2144.2,2142.9,5.0137332]
[1773407045561,5.17183707,2143.8,2142.2,0.40496423]
[1773407045853,5.17183707,2143.8,2142.1,1.16703071]
[1773407045854,5.22961746,2143.7,2142.1,1.16703071]
[1773407046255,1.16626236,2143.6,2142.1,1.16703071]
[1773407046457,5.23013658,2143.5,2142.1,1.16703071]
[1773407046752,5.2301529,2143.5,2142.3,4.384401]
[1773407047166,5.2301529,2143.5,2142.2,1.55780978]
[1773407047460,5.2301529,2143.5,2142.3,5.0313128]
[1773407047627,0.05831583,2143.5,2142.3,5.0313128]
[1773407047823,0.05831583,2143.5,2142.4,11.720235]
[1773407048153,6.33760997,2144.5,2142.7,5.0313128]
[1773407048324,1.16593601,2144.2,2142.9,1.16664333]
[1773407048519,5.22960114,2144.1,2142.9,1.16664333]
[1773407048743,5.22960114,2144.1,2142.9,1.16764333]
[1773407048942,1.16593601,2144.2,2142.9,7.75576591]
[1773407049252,0.05776407,2144.1,2142.9,7.75576591]
[1773407049554,0.05776407,2144.1,2143.0,22.9995918]
[1773407049754,0.05776407,2144.2,2142.9,1.16664333]
[1773407049961,5.22960114,2144.2,2142.9,1.16664333]
[1773407050333,5.17183707,2144.0,2142.2,5.0313128]
[1773407050546,1.16599039,2144.1,2142.2,5.0313128]
[1773407050547,5.17183707,2143.8,2142.3,1.16697007]
[1773407050732,0.05776407,2143.9,2142.3,1.16697007]
[1773407050733,5.17183707,2143.6,2142.4,9.2078508]
[1773407050949,0.05776407,2143.5,2142.4,5.0313128]
[1773407051257,5.22960114,2143.9,2142.4,5.0313128]
[1773407051843,5.22960114,2143.9,2142.5,0.002]
[1773407052051,5.17183707,2143.9,2142.6,1.63900193]
[1773407052236,5.22960114,2143.8,2142.5,0.001]
[1773407052437,5.17183707,2143.6,2142.5,0.001]
[1773407052635,5.17183707,2143.4,2142.5,0.001]
[1773407052834,0.05776407,2143.3,2142.5,0.001]
[1773407053353,5.22960114,2143.3,2142.5,0.001]
[1773407053725,6.33804502,2143.7,2142.5,0.001]
[1773407053931,0.05776407,2143.7,2142.5,5.0323128]
[1773407054161,0.05776407,2143.8,2142.5,5.0323128]
[1773407054468,0.002,2144.2,2142.5,5.0323128]
[1773407054469,0.002,2144.2,2143.0,5.0313128]
[1773407054624,0.002,2144.2,2143.2,13.1758548]
[1773407054830,0.002,2144.2,2143.3,2.1506]
[1773407055043,0.002,2144.2,2143.2,5.0313128]
[1773407055441,0.002,2144.2,2143.5,0.001]
[1773407055644,0.002,2144.2,2143.3,15.6172228]
[1773407055852,0.002,2144.2,2143.4,8.01699]
[1773407056048,0.002,2144.2,2143.6,0.001]
[1773407056275,1.22574061,2144.2,2143.1,1.63900193]
[1773407056557,6.39757768,2144.2,2143.0,1.16658889]
[1773407056947,6.39757768,2144.2,2143.3,0.001]
[1773407057151,6.39757768,2144.2,2143.0,1.16658889]
[1773407058028,6.39757768,2144.2,2143.1,0.001]
[1773407058440,6.39757768,2144.2,2143.3,0.001]
[1773407058764,6.39757768,2144.2,2143.0,1.16658889]
[1773407058946,6.39757768,2144.2,2143.0,1.16758889]
[1773407059151,6.39757768,2144.2,2142.9,1.16660804]
[1773407059350,6.39757768,2144.2,2142.6,1.16680668]
[1773407059662,6.39757768,2144.2,2142.6,0.001]
[1773407059835,6.39757768,2144.2,2142.5,1.16782598]
[1773407060035,6.39757768,2144.2,2142.5,1.16882598]
[1773407060233,6.39757768,2144.2,2142.5,1.16782598]
[1773407060545,6.39757768,2144.2,2142.5,0.001]
[1773407060747,6.39757768,2144.2,2142.6,0.001]
[1773407060965,5.27108041,2144.0,2142.5,0.001]
[1773407061138,5.27108041,2143.8,2142.5,0.001]
[1773407061345,1.16797654,2144.2,2142.5,0.001]
[1773407061346,5.27108041,2143.6,2142.5,0.001]
[1773407062568,5.27108041,2143.6,2142.7,0.001]
[1773407062806,6.43739718,2143.5,2142.7,0.001]
[1773407063071,6.43739718,2143.5,2142.8,0.001]
[1773407063361,6.43739718,2143.5,2142.5,0.001]
[1773407063551,6.49516125,2143.5,2142.7,0.001]
[1773407063867,6.49516125,2143.5,2142.5,0.001]
[1773407064452,5.27108041,2143.9,2143.2,0.001]
[1773407064658,5.27108041,2143.9,2142.8,0.04666791]
[1773407064863,1.16615355,2143.8,2142.9,1.16664333]
[1773407065184,6.43719681,2143.9,2143.0,0.04666355]
[1773407065356,1.22388103,2143.9,2142.9,1.16664333]
[1773407065542,1.22388103,2143.9,2142.9,1.16764333]
[1773407065743,1.22388103,2143.9,2142.9,6.09718371]
[1773407065956,1.22388103,2143.9,2143.4,0.001]
[1773407066282,1.22388103,2143.9,2142.9,6.09718371]
[1773407066583,1.22388103,2143.9,2143.2,0.001]
[1773407066790,1.22388103,2143.9,2142.9,6.09718371]
[1773407066964,1.22388103,2143.9,2143.3,0.001]
[1773407067163,1.22388103,2143.9,2142.9,6.09718371]
[1773407067364,0.05776407,2143.9,2142.9,6.09718371]
[1773407067567,0.002,2144.0,2143.2,4.92954038]
[1773407067793,1.16808353,2144.0,2143.0,5.598811]
[1773407068092,1.1680472,2144.0,2143.5,0.001]
[1773407068289,0.05776407,2143.9,2142.9,1.16764333]
[1773407068489,0.05776407,2143.9,2143.1,0.001]
[1773407068667,6.43912761,2144.0,2142.9,6.09718371]
[1773407068870,0.002,2144.0,2143.1,4.92954038]
[1773407069074,1.16805144,2144.0,2143.5,0.001]
[1773407069256,0.002,2144.0,2143.5,0.001]
[1773407069465,0.002,2144.2,2143.9,0.001]
[1773407069770,0.002,2144.2,2143.4,3.491587]
[1773407069982,0.002,2144.2,2144.0,0.001]
[1773407070166,0.002,2144.2,2143.5,4.92954038]
[1773407070377,1.225734,2144.2,2143.1,4.92954038]
[1773407070693,0.002,2144.2,2143.3,4.92954038]
[1773407070890,0.002,2144.2,2143.5,1.16631677]
[1773407071091,0.002,2144.2,2143.4,1.16633399]
[1773407071600,0.002,2144.2,2143.9,0.001]
[1773407071954,0.002,2144.2,2143.4,1.16633399]
[1773407071955,0.002,2144.2,2144.1,0.001]
[1773407072160,0.002,2144.2,2143.4,1.16633399]
[1773407072161,0.002,2144.2,2143.6,4.92954038]
[1773407072357,0.002,2144.4,2143.8,1.56099714]
[1773407072599,0.002,2144.7,2143.8,6.49053752]
[1773407072769,0.002,2144.7,2143.9,4.92954038]
[1773407072970,0.002,2144.7,2144.4,0.001]
[1773407073189,0.002,2144.7,2144.0,1.16604477]
[1773407073488,0.002,2144.7,2144.6,0.001]
[1773407074687,0.001,2144.7,2144.6,0.001]
[1773407074875,1.16542382,2145.2,2144.3,1.16588163]
[1773407075077,6.4942683,2145.2,2144.3,1.51311458]
[1773407075388,4.66103936,2145.5,2144.3,1.51311458]
[1773407075389,6.43635695,2145.5,2144.4,6.49053752]
[1773407075570,0.05776407,2145.4,2144.4,6.49053752]
[1773407075891,5.27108041,2145.5,2144.5,2.063909]
[1773407076090,1.16516556,2145.7,2144.6,7.81877]
[1773407076279,0.05776407,2145.6,2144.6,4.30137]
[1773407076478,0.05776407,2145.6,2144.6,4.036566]
[1773407077387,0.05776407,2145.6,2144.4,1.16582727]
[1773407077388,6.43630996,2145.5,2144.4,1.16582727]
[1773407077689,5.27108041,2145.3,2144.4,1.16582727]
[1773407077989,5.32884448,2145.2,2144.4,1.16582727]
[1773407078379,5.27108041,2145.2,2144.3,1.52834132]
[1773407079076,0.05776407,2145.1,2144.3,1.51307911]
[1773407079391,1.16550116,2145.0,2144.3,1.51307911]
[1773407079590,1.16550116,2145.0,2144.3,1.16584616]
[1773407080166,1.16546089,2145.1,2144.3,1.16584616]
[1773407080396,1.22322496,2145.1,2144.3,1.16584616]
[1773407080896,5.27308041,2145.0,2143.7,1.56099714]
[1773407081083,5.32884448,2144.9,2143.8,4.66446623]
[1773407081273,5.32884448,2144.9,2143.5,4.66513037]
[1773407081478,5.27108041,2144.7,2143.5,4.66513037]
[1773407081690,5.27108041,2144.5,2143.5,4.66513037]
[1773407081996,5.27108041,2144.5,2143.3,4.66548474]
[1773407082690,5.27108041,2144.5,2143.3,1.1664256]
[1773407083085,5.27108041,2144.5,2143.4,0.04665484]
[1773407083471,5.27108041,2144.3,2143.4,1.21298266]
[1773407083670,5.27108041,2144.3,2143.4,1.16634387]
[1773407083892,5.27108041,2144.3,2143.4,1.21299871]
[1773407084675,6.43663591,2144.9,2143.5,7.572157]
[1773407084876,6.43663591,2144.9,2143.7,4.433024]
[1773407085075,5.32884448,2144.8,2143.6,6.49053752]
[1773407085384,5.32884448,2144.8,2143.4,1.16634387]
[1773407085584,1.16566419,2144.7,2143.6,1.16626236]
[1773407085799,1.16566419,2144.7,2143.7,0.04664831]
[1773407085987,1.22342826,2144.7,2143.8,7.987558]
[1773407086185,0.05776407,2144.7,2143.9,0.04664396]
[1773407086390,6.4367197,2144.8,2143.8,5.381274]
[1773407086596,6.4367197,2144.8,2143.9,0.04664396]
[1773407086779,6.4367197,2144.8,2143.8,5.381274]
[1773407086980,1.16559945,2144.9,2143.9,0.04664396]
[1773407087183,0.002,2145.0,2143.9,5.15800737]
[1773407087390,0.002,2145.0,2144.1,14.42301341]
[1773407087605,0.002,2145.0,2144.2,0.04663744]
[1773407087900,0.002,2145.0,2144.3,1.16588163]
[1773407088290,0.002,2145.2,2144.4,0.04663309]
[1773407088882,2.2916061,2146.4,2144.4,0.04663309]
[1773407088883,0.002,2145.5,2144.7,4.569334]
[1773407089103,1.16723725,2145.5,2144.3,1.16588163]
[1773407089307,0.05776407,2145.4,2144.4,4.909407]
[1773407090083,1.16533818,2145.3,2144.5,1.1657729]
[1773407090283,0.05776407,2145.2,2144.5,1.1657729]
[1773407090583,4.8196909,2145.2,2144.6,0.04662874]
[1773407090785,4.8196909,2145.2,2144.2,7.306473]
[1773407090988,4.8196909,2145.2,2144.2,3.639646]
[1773407091796,0.05776407,2145.1,2144.1,4.86467381]
[1773407091997,4.87745497,2145.2,2144.2,3.082279]
[1773407092196,1.16544683,2145.1,2144.2,1.16593601]
[1773407092396,6.06817984,2145.1,2144.2,1.16593601]
[1773407093693,6.12594391,2145.1,2144.2,1.16593601]
[1773407094299,6.12594391,2145.1,2144.1,4.66374405]
[1773407094816,6.12594391,2145.1,2144.2,0.04663744]
[1773407095186,6.12594391,2145.1,2144.1,4.66374405]
[1773407095390,6.12594391,2145.1,2144.4,0.001]
[1773407095685,0.002,2145.3,2144.4,0.001]
[1773407095898,1.16541873,2145.2,2144.4,0.001]
[1773407096398,6.12591581,2145.2,2144.4,0.04763309]
[1773407096609,6.12591581,2145.2,2144.4,0.001]
[1773407097205,6.12591581,2145.2,2144.1,1.16698597]
[1773407097630,6.12591581,2145.2,2144.1,1.16695925]
[1773407098214,6.12591581,2145.2,2144.1,0.001]
[1773407099430,4.90273301,2145.0,2144.1,0.001]
[1773407099629,4.90273301,2144.8,2144.1,0.001]
[1773407099826,4.96049708,2144.8,2144.1,0.001]
[1773407100445,4.90273301,2144.6,2144.1,0.001]
[1773407100610,4.90273301,2145.2,2144.1,0.001]
[1773407100810,6.12588958,2145.2,2144.1,0.001]
[1773407101617,6.12588958,2145.2,2144.1,0.04763961]
[1773407102519,6.12588958,2145.2,2144.2,1.16593601]
[1773407102715,6.12588958,2145.2,2144.3,0.04663526]
[1773407103139,6.06812551,2145.2,2144.3,0.04663526]
[1773407103446,6.06812551,2145.2,2144.2,1.16593601]
[1773407103447,0.05776407,2145.1,2144.2,1.16593601]
[1773407103647,4.96049708,2145.1,2144.2,1.16593601]
[1773407104612,4.96049708,2145.1,2144.3,1.589]
[1773407104814,6.06823417,2145.0,2144.4,1.16582727]
[1773407105046,4.96049708,2144.9,2144.1,0.001]
[1773407105210,4.96049708,2144.9,2144.3,1.589]
[1773407106648,1.22326523,2145.0,2144.3,1.589]
[1773407106830,1.22327111,2145.0,2144.4,1.16582727]
[1773407107129,1.16550704,2145.0,2144.4,1.16582727]
[1773407108343,4.90273301,2145.2,2144.4,1.16582727]
[1773407108514,6.06813582,2145.2,2144.4,1.16582727]
[1773407109013,0.002,2145.3,2144.4,6.03050108]
[1773407109416,2.52567952,2145.8,2144.4,6.03050108]
[1773407109417,4.90273301,2146.1,2144.8,4.86467381]
[1773407109622,0.05776407,2146.0,2144.8,4.86467381]
[1773407109853,4.90273301,2146.0,2144.8,4.86467381]
[1773407110417,4.90273301,2146.0,2144.9,1.585]
[1773407110619,0.002,2145.3,2144.9,1.585]
[1773407110820,4.90273301,2146.0,2145.0,0.29641574]
[1773407111016,0.002,2145.5,2145.1,1.16544683]
[1773407111259,0.002,2145.8,2145.2,0.29438783]
[1773407113258,0.002,2145.8,2145.3,1.16533818]
[1773407115657,4.90273301,2145.7,2144.9,1.581]
[1773407115841,4.90273301,2145.7,2145.0,0.04662004]
[1773407115842,0.05776407,2145.6,2145.0,0.04662004]
[1773407116242,0.05776407,2145.6,2144.9,1.581]
[1773407119275,1.16522955,2145.5,2145.0,1.16550116]
[1773407119483,4.96049708,2145.6,2145.0,1.16550116]
[1773407119646,0.002,2145.8,2145.0,6.03017497]
[1773407119841,0.002,2146.3,2145.4,4.86467381]
[1773407120398,0.002,2146.5,2145.7,4.86467381]
[1773407121282,0.002,2146.5,2145.9,5.23625495]
[1773407121778,0.002,2146.5,2145.8,1.16506664]
[1773407122186,4.97190217,2146.5,2145.4,1.16517804]
[1773407122485,0.002,2146.5,2145.7,6.95278]
[1773407122670,0.002,2146.5,2145.7,5.23625495]
[1773407122857,0.002,2146.5,2145.7,5.28285978]
[1773407123172,0.002,2146.5,2145.8,1.16506664]
[1773407123376,0.002,2146.5,2145.8,6.40132159]
[1773407123881,0.002,2146.5,2145.8,1.16506664]
[1773407124093,0.002,2146.5,2145.9,1.577]
[1773407124094,4.97190217,2146.5,2145.9,1.577]
[1773407124475,4.97190217,2146.5,2145.5,1.16520428]
[1773407124683,4.97190217,2146.5,2145.6,0.046607]
[1773407124880,4.97190217,2146.5,2145.6,5.28286195]
[1773407124881,0.002,2146.5,2145.6,5.28286195]
[1773407125086,0.002,2146.1,2145.6,5.28286195]
[1773407125268,0.002,2146.5,2145.6,5.28286195]
[1773407125269,0.002,2146.5,2145.9,1.16501234]
[1773407125472,0.002,2146.5,2145.9,1.21161283]
[1773407125669,0.002,2146.5,2146.0,1.576]
[1773407126476,4.97190217,2146.5,2146.0,1.576]
[1773407127490,4.97190217,2146.5,2146.0,2.74092876]
[1773407127491,0.002,2146.5,2146.0,2.74092876]
[1773407127796,6.13659976,2146.5,2146.0,1.576]
[1773407128087,6.19436383,2146.5,2146.0,1.576]
[1773407128287,5.02966624,2146.5,2146.0,2.74095594]
[1773407128491,6.13659857,2146.5,2146.0,2.74095594]
[1773407128689,6.13659857,2146.5,2146.0,1.576]
[1773407128890,0.002,2146.5,2146.0,2.74091013]
[1773407129098,0.002,2146.7,2146.1,0.26535698]
[1773407129271,4.97190217,2146.7,2146.2,0.26352872]
[1773407129594,4.96990217,2146.9,2146.2,0.26352872]
[1773407129797,5.02766624,2146.8,2146.3,1.574]
[1773407129990,4.96990217,2146.8,2146.3,1.574]
[1773407130177,5.02766624,2146.7,2146.3,1.574]
[1773407130968,6.13635787,2147.0,2146.3,1.574]
[1773407131290,0.05776407,2146.9,2146.3,1.574]
[1773407131494,1.22420322,2147.0,2146.3,2.73875412]
[1773407131701,1.16643915,2147.0,2146.3,2.73875412]
[1773407131875,0.05976407,2147.0,2146.3,2.73875412]
[1773407132073,1.16642429,2147.0,2146.3,2.73875412]
[1773407132271,1.16642199,2147.0,2146.3,2.78534592]
[1773407132469,1.16642252,2147.0,2146.3,2.78534592]
[1773407132683,0.002,2147.0,2146.3,2.78534592]
[1773407132999,0.002,2147.6,2146.7,5.23625495]
[1773407133196,0.002,2147.6,2146.9,5.23625495]
[1773407133500,0.002,2147.9,2147.3,1.16425278]
[1773407133686,0.002,2147.9,2147.3,6.40050773]
[1773407134193,0.002,2147.9,2147.4,1.573]
[1773407135570,0.002,2147.9,2147.5,1.16414435]
[1773407135772,0.002,2147.9,2146.9,6.40069216]
[1773407135973,0.002,2147.9,2147.0,5.23625495]
[1773407136292,4.97190217,2147.9,2146.8,1.42775406]
[1773407136519,4.97190217,2147.7,2146.8,0.26327196]
[1773407137075,4.97190217,2147.7,2146.4,1.16473502]
[1773407137780,4.96990217,2147.5,2146.2,1.1648495]
[1773407138477,4.96990217,2147.5,2146.4,1.55531326]
[1773407138888,4.96990217,2147.5,2146.5,0.04658746]
[1773407139494,4.96990217,2147.5,2146.4,1.55531326]
[1773407139683,4.96990217,2147.3,2146.4,1.16474096]
[1773407141805,1.164307,2147.2,2146.5,0.04658746]
[1773407142402,6.13420917,2147.2,2146.5,0.04658746]
[1773407142601,6.13420917,2147.2,2146.4,1.16474096]
[1773407142910,6.13420917,2147.2,2146.5,0.04658746]
[1773407143200,6.13420917,2147.2,2146.3,2.73775663]
[1773407143599,6.13420917,2147.2,2146.4,0.04658963]
[1773407143980,4.96990217,2147.5,2146.4,6.40095431]
[1773407145011,4.96990217,2147.5,2146.0,4.65896384]
[1773407145012,4.96990217,2147.5,2145.8,0.065536]
[1773407145200,4.96990217,2147.5,2146.0,2.73695806]
[1773407145401,4.96990217,2147.5,2146.1,0.04659615]
[1773407145706,4.96990217,2147.5,2146.3,5.23625495]
[1773407146011,4.94251718,2147.3,2146.5,1.16468669]
[1773407146180,4.94251718,2147.3,2146.6,1.61658529]
[1773407147090,1.16419856,2147.4,2146.6,1.61658529]
[1773407147682,6.10671574,2147.4,2146.6,1.57]
[1773407148806,6.10671574,2147.4,2146.6,2.73459395]
[1773407149009,6.10671574,2147.4,2146.7,0.04658312]
[1773407149178,1.16604341,2147.7,2146.8,4.83232283]
[1773407149383,1.16604341,2147.7,2146.9,0.04657878]
[1773407149590,0.002,2147.7,2146.9,0.04657878]
[1773407149979,0.002,2147.7,2147.0,1.16441546]
[1773407150199,0.002,2147.7,2147.0,1.21099207]
[1773407150411,0.002,2147.7,2147.1,4.83232283]
[1773407150998,0.002,2147.7,2147.2,1.571]
[1773407152103,0.002,2147.7,2147.3,1.16425278]
[1773407153591,0.002,2147.9,2147.3,1.16425278]